[Event "HUN-ch Rapid 2020"]
[Site "Ajka"]
[Date "2020.07.18"]
[Round "5.2"]
[White "Nagy, Gabor"]
[Black "Kozak, Adam"]
[Result "1/2-1/2"]
[ECO "D35"]
[WhiteElo "2502"]
[BlackElo "2503"]
[Annotator "RC"]
[PlyCount "72"]
[EventDate "2020.07.17"]
[EventType "swiss"]
[EventCountry "HUN"]
[SourceTitle "playchess.com"]
[Source "ChessBase"]
[SourceQuality "1"]
[TimeControl "900+10"]

1. d4 {[%emt 0:00:04]} Nf6 {[%emt 0:00:02]} 2. Nf3 {[%emt 0:00:08]} d5 {[%emt 0:00:09]} 3. c4 {[%emt 0:00:06]} e6 {[%emt 0:00:03]} 4. Nc3 {[%emt 0:00:03]} Nbd7 {[%emt 0:00:07]} 5. cxd5 {[%emt 0:00:12]} exd5 {[%emt 0:00:02]} 6. Bf4 {[%emt 0:00:05]} c6 {[%emt 0:00:19]} 7. Qc2 {[%emt 0:00:02]} Nh5 {[%emt 0:01:10]} 8. Bd2 {[%emt 0:00:02]} g6 {[%emt 0:00:49]} 9. g4 {[%emt 0:00:53]} Nhf6 {[%emt 0:00:04]} 10. g5 {[%emt 0:01:11]} Nh5 {[%emt 0:00:14]} 11. e4 {[%emt 0:00:25]} Nb6 {[%emt 0:01:50]} 12. O-O-O {[%emt 0:00:16]} Be7 {[%emt 0:00:42]} 13. Rg1 {[%emt 0:01:36]} O-O {[%emt 0:00:25]} 14. Ne5 {[%emt 0:00:29]} dxe4 {[%emt 0:00:37]} 15. Nxe4 {[%emt 0:00:27]} Bf5 {[%emt 0:00:18]} 16. Bd3 {[%emt 0:00:34]} Qxd4 {[%emt 0:05:31]} 17. Bc3 {[%emt 0:00:05]} Qa4 {[%emt 0:00:02]} 18. b3 {[%emt 0:00:12]} Qa3+ {[%emt 0:00:01]} 19. Kb1 {[%emt 0:00:02]} Rfd8 {[%emt 0:01:27]} 20. Ng3 {[%emt 0:04:29]} Bxd3 {[%emt 0:01:25]} 21. Nxd3 {[%emt 0:00:05]} Nxg3 {[%emt 0:00:31]} 22. hxg3 {[%emt 0:00:11]} Bxg5 {[%emt 0:00:43]} 23. f4 {[%emt 0:00:18]} Bh6 {[%emt 0:01:33]} 24. Rh1 {[%emt 0:00:48]} Qf8 {[%emt 0:00:03]} 25. Qh2 {[%emt 0:01:26]} Nd5 {[%emt 0:00:36]} 26. Bd4 {[%emt 0:00:01]} c5 {[%emt 0:00:26]} 27. Nxc5 {[%emt 0:00:01]} Rac8 {[%emt 0:00:09]} 28. Ne4 {[%emt 0:00:29]} f5 {[%emt 0:00:06]} 29. Ng5 {[%emt 0:00:31]} Rd7 {[%emt 0:00:11]} 30. Bb2 {[%emt 0:00:48]} Nc3+ {[%emt 0:00:11]} 31. Bxc3 {[%emt 0:00:02]} Rxd1+ {[%emt 0:00:01]} 32. Rxd1 {[%emt 0:00:02]} Bxg5 {[%emt 0:00:01]} 33. Rd7 {[%emt 0:00:20]} Bh6 {[%emt 0:00:31]} 34. Qd2 {[%emt 0:00:01]} Qc5 {[%emt 0:00:06]} 35. Kb2 {[%emt 0:02:18]} Bf8 {[%emt 0:00:02]} 36. b4 {[%emt 0:00:03]} Qc4 {[%emt 0:00:11]} 1/2-1/2

[Event "HUN-ch Rapid 2020"]
[Site "Ajka"]
[Date "2020.07.18"]
[Round "5.7"]
[White "Krstulovic, Alex"]
[Black "Czebe, Attila"]
[Result "0-1"]
[ECO "A41"]
[WhiteElo "2338"]
[BlackElo "2367"]
[Annotator "RC"]
[PlyCount "94"]
[EventDate "2020.07.17"]
[EventType "swiss"]
[EventCountry "HUN"]
[SourceTitle "playchess.com"]
[Source "ChessBase"]
[SourceQuality "1"]
[TimeControl "900+10"]

1. d4 {[%emt 0:00:03]} d6 {[%emt 0:00:31]} 2. Nf3 {[%emt 0:00:03]} Nf6 {[%emt 0:00:07]} 3. c4 {[%emt 0:00:02]} g6 {[%emt 0:00:01]} 4. Nc3 {[%emt 0:00:01]} Bf5 {[%emt 0:00:01]} 5. Ng5 {[%emt 0:00:03]} Bd7 {[%emt 0:00:13]} 6. f4 {[%emt 0:00:03]} Bg7 {[%emt 0:00:10]} 7. e4 {[%emt 0:00:01]} O-O {[%emt 0:00:02]} 8. e5 {[%emt 0:00:08]} Ne8 {[%emt 0:00:09]} 9. h4 {[%emt 0:00:01]} h6 {[%emt 0:04:14]} 10. h5 {[%emt 0:02:25]} hxg5 {[%emt 0:00:03]} 11. h6 {[%emt 0:00:00]} Bh8 {[%emt 0:00:14]} 12. h7+ {[%emt 0:00:02]} Kg7 {[%emt 0:00:01]} 13. f5 {[%emt 0:00:45]} Bxf5 {[%emt 0:00:26]} 14. Bxg5 {[%emt 0:01:08]} f6 {[%emt 0:00:00]} 15. Bh6+ {[%emt 0:00:37]} Kf7 {[%emt 0:00:01]} 16. g4 {[%emt 0:00:38]} Bc8 {[%emt 0:00:18]} 17. Bxf8 {[%emt 0:02:20]} Kxf8 {[%emt 0:00:01]} 18. Qc2 {[%emt 0:00:05]} f5 {[%emt 0:00:49]} 19. gxf5 {[%emt 0:01:07]} Bxf5 {[%emt 0:00:01]} 20. Bd3 {[%emt 0:00:00]} Ng7 {[%emt 0:00:03]} 21. O-O-O {[%emt 0:00:13]} e6 {[%emt 0:05:25]} 22. d5 {[%emt 0:01:26]} Nd7 {[%emt 0:00:09]} 23. exd6 {[%emt 0:01:32]} Ne5 {[%emt 0:01:04]} 24. Bxf5 {[%emt 0:00:11]} exf5 {[%emt 0:00:09]} 25. dxc7 {[%emt 0:00:44]} Qxc7 {[%emt 0:00:01]} 26. Qe2 {[%emt 0:02:44]} Ne8 {[%emt 0:00:14]} 27. Kb1 {[%emt 0:01:27]} Nd6 {[%emt 0:01:00]} 28. Nb5 {[%emt 0:01:06]} Qxc4 {[%emt 0:01:33]} 29. Qxe5 {[%emt 0:00:40]} Bxe5 {[%emt 0:00:46]} 30. Nxd6 {[%emt 0:00:01]} Qe2 {[%emt 0:00:16]} 31. h8=Q+ {[%emt 0:00:23]} Bxh8 {[%emt 0:00:01]} 32. Rxh8+ {[%emt 0:00:00]} Kg7 {[%emt 0:00:01]} 33. Rhh1 {[%emt 0:00:02]} Rd8 {[%emt 0:00:13]} 34. Rhe1 {[%emt 0:00:00]} Qf3 {[%emt 0:00:14]} 35. Nxb7 {[%emt 0:00:37]} Rxd5 {[%emt 0:00:02]} 36. Rc1 {[%emt 0:00:00]} Rd2 {[%emt 0:00:49]} 37. Na5 {[%emt 0:00:18]} Re2 {[%emt 0:00:15]} 38. Red1 {[%emt 0:00:01]} Qe4+ {[%emt 0:00:05]} 39. Ka1 {[%emt 0:00:02]} Rc2 {[%emt 0:00:10]} 40. Rd7+ {[%emt 0:00:04]} Kh6 {[%emt 0:00:06]} 41. Rb1 {[%emt 0:00:12]} Re2 {[%emt 0:00:40]} 42. Rdd1 {[%emt 0:00:15]} f4 {[%emt 0:00:00]} 43. Rh1+ {[%emt 0:00:18]} Kg7 {[%emt 0:00:04]} 44. Rbc1 {[%emt 0:00:04]} Qxh1 {[%emt 0:00:20]} 45. Rxh1 {[%emt 0:00:17]} f3 {[%emt 0:00:00]} 46. Rf1 {[%emt 0:00:19]} f2 {[%emt 0:00:01]} 47. Rxf2 {[%emt 0:00:01]} Rxf2 {[%emt 0:00:01]} 0-1

[Event "HUN-ch Rapid 2020"]
[Site "Ajka"]
[Date "2020.07.18"]
[Round "8.12"]
[White "Deak, Sandor"]
[Black "Ongut, Tamas Gunes"]
[Result "1/2-1/2"]
[ECO "C48"]
[WhiteElo "2281"]
[BlackElo "2305"]
[Annotator "NA"]
[PlyCount "51"]
[EventDate "2020.07.17"]
[EventType "swiss"]
[EventCountry "HUN"]
[SourceTitle "playchess.com"]
[Source "ChessBase"]
[SourceQuality "1"]
[TimeControl "900+10"]

1. e4 {[%emt 0:00:01]} e5 {[%emt 0:00:07]} 2. Nf3 {[%emt 0:00:01]} Nc6 {[%emt 0:00:01]} 3. Nc3 {[%emt 0:00:05]} Nf6 {[%emt 0:00:06]} 4. Bb5 {[%emt 0:00:02]} Nd4 {[%emt 0:00:02]} 5. Bc4 {[%emt 0:00:14]} c6 {[%emt 0:00:21]} 6. d3 {[%emt 0:00:07]} d5 {[%emt 0:00:45]} 7. exd5 {[%emt 0:00:31]} cxd5 {[%emt 0:00:08]} 8. Bb3 {[%emt 0:00:29]} Bg4 {[%emt 0:02:14]} 9. Ba4+ {[%emt 0:04:22]} Nc6 {[%emt 0:00:15]} 10. h3 {[%emt 0:00:12]} Bh5 {[%emt 0:00:21]} 11. g4 {[%emt 0:00:18]} Bg6 {[%emt 0:00:10]} 12. Nxe5 {[%emt 0:00:41]} Qc7 {[%emt 0:00:53]} 13. Bf4 {[%emt 0:03:41]} Bd6 {[%emt 0:00:36]} 14. Nxg6 {[%emt 0:03:48]} hxg6 {[%emt 0:00:13]} 15. Bxd6 {[%emt 0:00:01]} Qxd6 {[%emt 0:00:02]} 16. Qe2+ {[%emt 0:00:02]} Kf8 {[%emt 0:00:06]} 17. O-O-O {[%emt 0:00:02]} Re8 {[%emt 0:04:47]} 18. Qd2 {[%emt 0:00:01]} d4 {[%emt 0:00:22]} 19. Nb5 {[%emt 0:01:35]} Qc5 {[%emt 0:01:38]} 20. Na3 {[%emt 0:00:18]} Nd5 {[%emt 0:01:47]} 21. Bxc6 {[%emt 0:00:38]} Qxc6 {[%emt 0:00:27]} 22. Rde1 {[%emt 0:00:09]} Rxe1+ {[%emt 0:00:49]} 23. Qxe1 {[%emt 0:00:01]} Nf4 {[%emt 0:00:19]} 24. Nc4 {[%emt 0:01:04]} b5 {[%emt 0:00:58]} 25. Ne5 {[%emt 0:00:01]} Qd5 {[%emt 0:00:02]} 26. Qe4 {[%emt 0:00:11]} 1/2-1/2

[Event "HUN-ch Rapid 2020"]
[Site "Ajka"]
[Date "2020.07.18"]
[Round "8.23"]
[White "Kovacsy, Barnabas"]
[Black "Emodi, Barnabas"]
[Result "1/2-1/2"]
[ECO "B54"]
[WhiteElo "2143"]
[BlackElo "2352"]
[Annotator "NA"]
[PlyCount "53"]
[EventDate "2020.07.17"]
[EventType "swiss"]
[EventCountry "HUN"]
[SourceTitle "playchess.com"]
[Source "ChessBase"]
[SourceQuality "1"]
[TimeControl "900+10"]

1. e4 {[%emt 0:00:02]} c5 {[%emt 0:00:02]} 2. Nf3 {[%emt 0:00:08]} d6 {[%emt 0:00:03]} 3. d4 {[%emt 0:00:05]} cxd4 {[%emt 0:00:04]} 4. Nxd4 {[%emt 0:00:02]} e5 {[%emt 0:00:03]} 5. Nb3 {[%emt 0:00:14]} Nf6 {[%emt 0:00:04]} 6. f3 {[%emt 0:00:04]} Be7 {[%emt 0:00:38]} 7. c4 {[%emt 0:00:08]} O-O {[%emt 0:00:27]} 8. Be3 {[%emt 0:00:09]} Be6 {[%emt 0:00:39]} 9. Nc3 {[%emt 0:00:07]} a6 {[%emt 0:01:23]} 10. Be2 {[%emt 0:00:10]} Nbd7 {[%emt 0:01:10]} 11. O-O {[%emt 0:00:08]} Qc7 {[%emt 0:01:18]} 12. Nd5 {[%emt 0:00:14]} Bxd5 {[%emt 0:00:08]} 13. cxd5 {[%emt 0:00:02]} Rfc8 {[%emt 0:01:08]} 14. Qd2 {[%emt 0:01:03]} b6 {[%emt 0:00:36]} 15. Rac1 {[%emt 0:01:08]} Qb7 {[%emt 0:00:06]} 16. Na1 {[%emt 0:00:23]} Bd8 {[%emt 0:02:02]} 17. Nc2 {[%emt 0:00:57]} b5 {[%emt 0:00:40]} 18. Nb4 {[%emt 0:01:40]} Ba5 {[%emt 0:00:19]} 19. a3 {[%emt 0:00:02]} Nc5 {[%emt 0:00:31]} 20. Rc2 {[%emt 0:00:35]} Nfd7 {[%emt 0:01:59]} 21. Qd1 {[%emt 0:00:51]} Bxb4 {[%emt 0:00:45]} 22. axb4 {[%emt 0:00:02]} Na4 {[%emt 0:00:05]} 23. Rxc8+ {[%emt 0:00:18]} Rxc8 {[%emt 0:00:05]} 24. Qb3 {[%emt 0:00:15]} h6 {[%emt 0:00:18]} 25. Rc1 {[%emt 0:00:06]} Rxc1+ {[%emt 0:00:33]} 26. Bxc1 {[%emt 0:00:02]} Qc7 {[%emt 0:00:32]} 27. Be3 {[%emt 0:00:05]} 1/2-1/2

[Event "HUN-ch Rapid 2020"]
[Site "Ajka"]
[Date "2020.07.18"]
[Round "8.24"]
[White "Horvath, Tamas I"]
[Black "Varga, Marcell"]
[Result "1-0"]
[ECO "C73"]
[WhiteElo "2318"]
[BlackElo "1685"]
[Annotator "NA"]
[PlyCount "53"]
[EventDate "2020.07.17"]
[EventType "swiss"]
[EventCountry "HUN"]
[SourceTitle "playchess.com"]
[Source "ChessBase"]
[SourceQuality "1"]
[TimeControl "900+10"]

1. e4 {[%emt 0:00:04]} e5 {[%emt 0:00:02]} 2. Nf3 {[%emt 0:00:03]} Nc6 {[%emt 0:00:03]} 3. Bb5 {[%emt 0:00:04]} a6 {[%emt 0:00:04]} 4. Ba4 {[%emt 0:00:03]} d6 {[%emt 0:00:04]} 5. Bxc6+ {[%emt 0:00:11]} bxc6 {[%emt 0:00:02]} 6. d4 {[%emt 0:00:02]} exd4 {[%emt 0:00:25]} 7. Nxd4 {[%emt 0:00:25]} Bd7 {[%emt 0:00:02]} 8. O-O {[%emt 0:00:10]} c5 {[%emt 0:00:21]} 9. Ne2 {[%emt 0:00:36]} Bc6 {[%emt 0:01:22]} 10. Nbc3 {[%emt 0:00:03]} Nf6 {[%emt 0:00:02]} 11. Ng3 {[%emt 0:01:14]} Be7 {[%emt 0:01:37]} 12. Nf5 {[%emt 0:01:51]} O-O {[%emt 0:00:08]} 13. Qf3 {[%emt 0:00:59]} Re8 {[%emt 0:01:11]} 14. Qg3 {[%emt 0:00:53]} g6 {[%emt 0:00:34]} 15. Nxe7+ {[%emt 0:00:44]} Qxe7 {[%emt 0:00:04]} 16. f3 {[%emt 0:00:20]} Nh5 {[%emt 0:01:46]} 17. Qf2 {[%emt 0:00:37]} Rab8 {[%emt 0:00:30]} 18. b3 Qe5 {[%emt 0:01:45]} 19. Bd2 {[%emt 0:00:45]} Nf4 {[%emt 0:00:17]} 20. Rae1 {[%emt 0:02:23]} Ne6 {[%emt 0:01:28]} 21. Nd1 {[%emt 0:00:44]} Nd4 {[%emt 0:00:19]} 22. Ne3 {[%emt 0:00:24]} h5 {[%emt 0:01:48]} 23. Kh1 {[%emt 0:00:15]} Qf6 {[%emt 0:03:22]} 24. c4 {[%emt 0:02:19]} Ne6 {[%emt 0:00:01]} 25. Bc1 {[%emt 0:00:11]} a5 {[%emt 0:00:30]} 26. Bb2 {[%emt 0:00:05]} Qe7 {[%emt 0:01:04]} 27. Nd5 {[%emt 0:00:04]} 1-0

[Event "HUN-ch Rapid 2020"]
[Site "Ajka"]
[Date "2020.07.18"]
[Round "8.25"]
[White "Varga, Peter"]
[Black "Farkas, Otto Jr."]
[Result "1-0"]
[ECO "D20"]
[WhiteElo "2371"]
[BlackElo "1650"]
[Annotator "NA"]
[PlyCount "64"]
[EventDate "2020.07.17"]
[EventType "swiss"]
[EventCountry "HUN"]
[SourceTitle "playchess.com"]
[Source "ChessBase"]
[SourceQuality "1"]
[TimeControl "900+10"]

1. d4 {[%emt 0:00:01]} d5 {[%emt 0:00:01]} 2. c4 {[%emt 0:00:02]} dxc4 {[%emt 0:00:01]} 3. e4 {[%emt 0:00:16]} Nf6 {[%emt 0:00:02]} 4. e5 {[%emt 0:00:05]} Nd5 {[%emt 0:00:01]} 5. Bxc4 {[%emt 0:00:02]} Bf5 {[%emt 0:00:04]} 6. Ne2 {[%emt 0:00:31]} e6 {[%emt 0:00:06]} 7. O-O {[%emt 0:00:02]} Bxb1 {[%emt 0:00:02]} 8. Rxb1 {[%emt 0:00:03]} Nc6 {[%emt 0:00:01]} 9. Bb5 {[%emt 0:02:02]} Qd7 {[%emt 0:00:40]} 10. Qa4 {[%emt 0:00:09]} Nb6 {[%emt 0:00:07]} 11. Qc2 {[%emt 0:00:20]} Be7 {[%emt 0:00:17]} 12. Be3 {[%emt 0:00:09]} O-O {[%emt 0:00:06]} 13. Rfc1 {[%emt 0:00:07]} Qd5 {[%emt 0:00:31]} 14. a4 {[%emt 0:02:18]} Rac8 {[%emt 0:02:04]} 15. Nf4 {[%emt 0:01:18]} Qd7 {[%emt 0:00:39]} 16. a5 {[%emt 0:00:31]} Nd5 {[%emt 0:00:02]} 17. a6 {[%emt 0:00:04]} Ndb4 {[%emt 0:00:15]} 18. Qa4 {[%emt 0:00:06]} bxa6 {[%emt 0:01:25]} 19. Bxc6 {[%emt 0:00:03]} Qd8 {[%emt 0:00:01]} 20. Bb7 {[%emt 0:00:44]} Rb8 {[%emt 0:00:02]} 21. Bxa6 {[%emt 0:00:04]} g5 {[%emt 0:00:31]} 22. Nh5 {[%emt 0:00:30]} Rb6 {[%emt 0:00:11]} 23. Be2 {[%emt 0:00:11]} Qb8 {[%emt 0:00:25]} 24. Nf6+ {[%emt 0:00:46]} Bxf6 {[%emt 0:00:04]} 25. exf6 {[%emt 0:00:02]} Nd5 {[%emt 0:00:04]} 26. Bxg5 {[%emt 0:00:30]} Rxb2 {[%emt 0:00:03]} 27. Qa1 {[%emt 0:00:03]} Rxb1 {[%emt 0:00:29]} 28. Rxb1 {[%emt 0:00:21]} Qd8 {[%emt 0:00:02]} 29. Bh6 {[%emt 0:00:32]} Re8 {[%emt 0:00:08]} 30. Bb5 {[%emt 0:00:02]} Qxf6 {[%emt 0:00:13]} 31. Bxe8 {[%emt 0:00:05]} Qxh6 {[%emt 0:00:01]} 32. Bc6 {[%emt 0:00:36]} Nf4 1-0